[Event "13th KIIT Festival-A 2022"]
[Site "Bhubaneswar"]
[Date "2022.05.29"]
[Round "10.5"]
[White "Fedorov, Alexei"]
[Black "Pattnayak Nilsu"]
[Result "1-0"]
[ECO "C44"]
[WhiteElo "2529"]
[BlackElo "1992"]
[Annotator "TA"]
[PlyCount "101"]
[EventDate "2022.05.15"]
[EventType "swiss"]
[EventCountry "IND"]
[SourceTitle "playchess.com"]
[Source "ChessBase"]
[SourceQuality "1"]
[TimeControl "5400+30"]

{[%evp 17,101,0,0,0,0,0,0,0,5,6,7,6,23,21,21,19,16,20,29,29,37,36,31,37,37,36,35,34,147,45,125,125,124,0,0,0,0,-39,-41,-40,-25,-38,-32,-31,-31,-39,-22,-31,-34,-38,123,115,124,6,173,0,494,473,494,487,690,694,1085,1019,1621,1508,1219,1201,1214,993,29979,29980,29977,29981,29981,29982,29982,29983,29983,29984,29984,29984,29987,29985,29987,29988]} 1. e4 {[%emt 0:00:06]} e5 {[%emt 0:00:39]} 2. Nf3 {[%emt 0:00:58]} Nf6 {[%emt 0:00:06]} 3. d3 {[%emt 0:03:17]} Nc6 {[%emt 0:01:13]} 4. Be2 {[%emt 0:00:51]} d5 {[%emt 0:06:40]} 5. Nbd2 {[%emt 0:00:31]} dxe4 {[%emt 0:03:26]} 6. dxe4 {[%emt 0:00:16]} Bc5 {[%emt 0:05:07]} 7. c3 {[%emt 0:00:47]} a5 {[%emt 0:06:05]} 8. Qc2 {[%emt 0:02:05]} O-O {[%emt 0:03:50]} 9. O-O {[%emt 0:01:27]} Qe7 {[%emt 0:00:52]} 10. Nc4 {[%emt 0:03:23] C44: Ponziani Opening and Scotch Gambit.} h6 {[%emt 0:11:18]} 11. a4 {[%emt 0:07:17]} Rd8 {[%emt 0:03:44]} 12. h3 {[%emt 0:15:38] [#] The position is equal.} b6 $146 {[%emt 0:14:02]} ({Predecessor:} 12... Nh5 13. Be3 Nf4 14. Bxc5 Qxc5 15. Ne3 Be6 16. Rfe1 Rd6 17. Bf1 Rad8 18. Rad1 Rxd1 19. Rxd1 Rxd1 20. Qxd1 {1-0 (53) Eisenbeiser,K (1931)-Oden,E (2008) Baden 2020}) 13. Ne3 {[%emt 0:12:23]} Bxe3 {[%emt 0:08:01]} 14. Bxe3 {[%emt 0:00:11]} Bb7 {[%emt 0:02:09]} 15. Rfd1 {[%emt 0:09:39]} Rxd1+ {[%emt 0:01:57]} 16. Rxd1 {[%emt 0:00:05]} Rd8 {[%emt 0:00:02]} 17. Nd2 {[%emt 0:04:21]} Nb8 {[%emt 0:05:16]} 18. f3 {[%emt 0:02:03]} Nh5 {[%emt 0:02:03]} 19. Nc4 {[%emt 0:04:17]} Rxd1+ {[%emt 0:00:47]} 20. Qxd1 {[%emt 0:00:15][%cal Oc4e5]} Nc6 {[%emt 0:03:52]} 21. Bf2 {[%emt 0:02:21]} Nf4 {[%emt 0:01:29]} 22. Bf1 {[%emt 0:00:56]} Qg5 {[%emt 0:00:47]} (22... Bc8 $14) 23. Kh2 {[%emt 0:00:33]} (23. Qd7 $16) 23... Ba6 {[%emt 0:00:44]} (23... Qe7 $14) 24. g3 $16 {[%emt 0:02:13] aiming for Qd7.} Ne6 {[%emt 0:06:17] [#]} 25. Qd7 {[%emt 0:00:58] Against Bc8} (25. Nxa5 $1 $16 {[%mdl 512]} Bxf1 26. Nxc6) 25... Qc1 $11 {[%emt 0:02:06]} 26. Kg2 {[%emt 0:00:50]} Ncd8 {[%emt 0:00:46]} 27. Qd5 {[%emt 0:11:00] Active counter play!} Bxc4 {[%emt 0:00:58]} 28. Bxc4 {[%emt 0:00:27]} Qxb2 {[%emt 0:00:09]} 29. Qxe5 {[%emt 0:00:42]} Qc2 {[%emt 0:02:22]} 30. Qb5 {[%emt 0:03:18]} Qxc3 {[%emt 0:00:59]} 31. Qe8+ {[%emt 0:00:26]} Nf8 {[%emt 0:01:50]} 32. Bd5 {[%emt 0:00:30]} (32. Qxd8 Qxc4 33. Qe8 c6 $19) 32... Nde6 {[%emt 0:00:10]} 33. f4 {[%emt 0:00:23][%cal Bf3f4,Bf4f5][%mdl 32]} Qf6 $2 {[%emt 0:02:07]} (33... g6 $15) 34. f5 $16 {[%emt 0:01:33][%mdl 1024] White has strong compensation.} Qd8 {[%emt 0:00:03]} 35. Qc6 {[%emt 0:00:40]} ({White should try} 35. Qxd8 $16 Nxd8 36. g4) 35... Ng5 {[%emt 0:00:09] White now steadily converts the win.} (35... Nc5 $1 $11) 36. g4 $2 {[%emt 0:02:59]} (36. h4 $18 Ngh7 37. e5) 36... Qd7 $2 {[%emt 0:00:27][%mdl 8192]} (36... Qe7 $1 $11 {and Black is okay.} 37. Bd4 (37. h4 Ngh7 $15) 37... Qb4) 37. Bg3 $18 {[%emt 0:00:28]} Qxc6 {[%emt 0:03:07]} 38. Bxc6 {[%emt 0:00:05][%mdl 4096] Endgame KBB-KNN} f6 {[%emt 0:00:36]} (38... Nge6 $142 39. fxe6 Nxe6) 39. Bxc7 {[%emt 0:00:11]} Kf7 {[%emt 0:00:31]} 40. h4 {[%emt 0:00:20]} Ngh7 {[%emt 0:00:06]} 41. Bxb6 {[%emt 0:00:40]} Ke7 {[%emt 0:00:04]} 42. Bxa5 {[%emt 0:00:10]} Kd6 {[%emt 0:00:02]} 43. Bb5 {[%emt 0:00:18]} Nd7 {[%emt 0:00:25]} 44. Bxd7 {[%emt 0:00:09] White mates.} Kxd7 {[%emt 0:00:06] KB-KN} 45. Bb4 {[%emt 0:00:05]} Kc6 {[%emt 0:00:37]} 46. Kf3 {[%emt 0:00:08]} Kb6 {[%emt 0:00:11]} 47. Ke3 {[%emt 0:00:08]} Kb7 {[%emt 0:00:08]} 48. Kd4 {[%emt 0:00:06]} Kc6 {[%emt 0:00:05]} 49. Kc4 {[%emt 0:00:06]} Kc7 {[%emt 0:00:07]} 50. Kd5 {[%emt 0:00:07]} Kd7 {[%emt 0:00:08]} 51. Bd6 {[%emt 0:00:12] Weighted Error Value: White=0.18 (very precise) /Black=0.58} 1-0

[Event "13th KIIT Festival-A 2022"]
[Site "Bhubaneswar"]
[Date "2022.05.29"]
[Round "10.6"]
[White "Gusain, Himal"]
[Black "Nikitenko, Mihail"]
[Result "0-1"]
[ECO "C02"]
[WhiteElo "2396"]
[BlackElo "2479"]
[Annotator "TA"]
[PlyCount "86"]
[EventDate "2022.05.15"]
[EventType "swiss"]
[EventCountry "IND"]
[SourceTitle "playchess.com"]
[Source "ChessBase"]
[SourceQuality "1"]
[TimeControl "5400+30"]

{[%evp 10,86,5,0,0,-48,-29,-27,0,-6,-9,0,0,-24,-24,-16,-52,-72,-64,-81,-52,-49,-32,-28,-27,-38,-45,-29,18,3,32,14,26,33,38,15,0,7,51,-31,-25,-53,-27,-52,-31,-101,-119,-123,-116,-133,-124,-116,-120,-144,-114,-132,-129,-135,-117,-160,-145,-139,-134,-254,-268,-257,-246,-384,-295,-377,-386,-792,-485,-480,-470,-453,-404,-807,-749]} 1. e4 {[%emt 0:12:41]} e6 {[%emt 0:00:06]} 2. d4 {[%emt 0:00:05]} d5 {[%emt 0:00:05]} 3. e5 {[%emt 0:00:06]} c5 {[%emt 0:00:06][%cal Bc7c5,Bc5d4][%mdl 32]} 4. c3 {[%emt 0:00:03]} Nc6 {[%emt 0:00:08]} 5. Nf3 {[%emt 0:00:06]} Bd7 {[%emt 0:00:06]} 6. Bd3 {[%emt 0:00:11]} cxd4 {[%emt 0:00:54] C02: French: Advance Variation.} 7. O-O {[%emt 0:00:06] is now debated instead of 7.cxd4.} (7. cxd4 $11 Qb6 8. Be2) 7... Qb6 {[%emt 0:00:04]} 8. Re1 {[%emt 0:00:10]} Nh6 {[%emt 0:02:39] [#] Black has an edge.} 9. Bxh6 $146 {[%emt 0:10:28]} ({Predecessor:} 9. c4 dxc4 10. Bxc4 Be7 11. Nbd2 Nf5 12. Ne4 O-O 13. a3 Rac8 14. Bd3 h6 15. b4 {½-½ (107) Jones,G (2670)-Bluebaum,M (2670) Chess.com INT 2020}) 9... gxh6 {[%emt 0:00:11]} ({Much weaker is} 9... Qxb2 $6 10. Nbd2 dxc3 11. Bf4 cxd2 12. Bxd2 $17) 10. Nbd2 {[%emt 0:09:27]} Qxb2 {[%emt 0:03:47]} 11. cxd4 {[%emt 0:00:05]} (11. Rb1 $5 {[%cal Rb1b2]} Qa3 12. Rb3 Qxa2 13. Nxd4 $15) 11... Nxd4 {[%emt 0:03:02]} 12. Rb1 {[%emt 0:00:48]} Qc3 {[%emt 0:00:24]} 13. Re3 {[%emt 0:02:15]} Nxf3+ {[%emt 0:02:33]} 14. Nxf3 {[%emt 0:00:08]} Qc7 {[%emt 0:01:32]} 15. Nd4 {[%emt 0:01:24]} a6 {[%emt 0:01:43] Against Nb5} 16. Qh5 {[%emt 0:01:38]} Rg8 {[%emt 0:02:17]} 17. Bxh7 {[%emt 0:02:32]} Rg7 {[%emt 0:03:01]} 18. Bd3 {[%emt 0:00:54]} Rg5 {[%emt 0:00:04]} (18... Qc5 $142 19. Qh4 Qe7) 19. Qh4 {[%emt 0:01:32]} Be7 {[%emt 0:05:32][%cal Og5g2]} 20. Qxh6 {[%emt 0:01:50]} O-O-O {[%emt 0:00:06]} 21. Nf3 {[%emt 0:01:11]} Rg4 {[%emt 0:00:06][%cal Bg5g4,Bg4b4,Bb4f4][%mdl 32]} 22. h3 {[%emt 0:01:10]} Rb4 {[%emt 0:00:52]} 23. Ree1 {[%emt 0:02:04]} Bc6 {[%emt 0:02:27]} 24. Rbc1 {[%emt 0:08:43]} ({Better is} 24. Rxb4 $14 Bxb4 25. Rb1) 24... Kb8 $15 {[%emt 0:02:39]} 25. Qh7 {[%emt 0:10:08]} Rf4 {[%emt 0:00:59]} 26. Qh6 {[%emt 0:00:19]} Ra4 {[%emt 0:00:38]} 27. Bc2 {[%emt 0:01:16]} (27. h4 $15) 27... Rxa2 $17 {[%emt 0:05:53] Threatens to win with ...Bc5. White is now going downhill.} 28. Nd4 {[%emt 0:02:14]} Bc5 {[%emt 0:02:49]} 29. Bb3 {[%emt 0:00:07] [#]} Bxd4 {[%emt 0:01:59]} 30. Bxa2 {[%emt 0:00:21]} Bxe5 {[%emt 0:00:14][%cal Bd4e5,Be5h2,Bh2d6,Bd6c5,Bc5b6][%mdl 32] Hoping for ...Bh2+. A strong pair of Bishops.} 31. Qh7 {[%emt 0:00:32]} Rh8 {[%emt 0:02:23]} 32. Qd3 {[%emt 0:00:19][%cal Oc1c6]} Bh2+ {[%emt 0:04:00]} 33. Kh1 {[%emt 0:00:05][%cal Oc1c6] [#] aiming for Rxc6!} Bd6 $36 {[%emt 0:00:03][%mdl 2048] Keeping White busy.} 34. Bb3 {[%emt 0:00:10]} Qb6 {[%emt 0:01:13]} 35. Kg1 {[%emt 0:02:02]} Qb4 {[%emt 0:05:11]} 36. Rcd1 {[%emt 0:06:49]} (36. Red1 $17 {was necessary.}) 36... Qf4 $19 {[%emt 0:02:25]} 37. g3 {[%emt 0:00:05]} Qf6 {[%emt 0:00:04]} 38. h4 {[%emt 0:00:14]} (38. Qd4 {was worth a try.} Qxd4 39. Rxd4) 38... Bc5 {[%emt 0:00:15]} 39. Qc2 {[%emt 0:02:47]} Bb6 {[%emt 0:01:24] White must now prevent ...Rg8.} 40. Re2 $2 {[%emt 0:00:48]} (40. Rf1 Bb5 41. Kg2) 40... Qf3 {[%emt 0:02:42]} 41. Rd3 {[%emt 0:00:27]} Qg4 {[%emt 0:00:04] And now ...Rxh4 would win.} 42. Qd1 {[%emt 0:05:27]} Rxh4 {[%emt 0:03:18] ( -> ...d4)} 43. Rb2 {[%emt 0:00:26]} (43. Rc2 $142 Qg7 44. Qf3) 43... d4 {[%emt 0:00:42] Weighted Error Value: White=0.42/Black=0.19 (very precise)} 0-1

[Event "13th KIIT Festival-A 2022"]
[Site "Bhubaneswar"]
[Date "2022.05.29"]
[Round "10.7"]
[White "Arpita, Mukherjee"]
[Black "Laxman, R.R."]
[Result "1-0"]
[ECO "C77"]
[WhiteElo "2275"]
[BlackElo "2420"]
[Annotator "TA"]
[PlyCount "57"]
[EventDate "2022.05.15"]
[EventType "swiss"]
[EventCountry "IND"]
[SourceTitle "playchess.com"]
[Source "ChessBase"]
[SourceQuality "1"]
[TimeControl "5400+30"]

{[%evp 13,57,32,32,15,22,19,17,24,50,29,35,45,45,52,47,37,44,53,66,60,64,33,41,0,13,28,71,71,77,71,104,118,142,135,274,264,637,629,717,697,663,679,652,675,1758,1698]} 1. e4 {[%emt 0:07:43]} e5 {[%emt 0:00:05]} 2. Nf3 {[%emt 0:00:07]} Nc6 {[%emt 0:00:05]} 3. Bb5 {[%emt 0:00:04]} a6 {[%emt 0:00:05]} 4. Ba4 {[%emt 0:00:08]} Nf6 {[%emt 0:00:07]} 5. d3 {[%emt 0:00:04]} d6 {[%emt 0:00:21]} 6. c3 {[%emt 0:00:11]} g6 {[%emt 0:00:19]} 7. O-O {[%emt 0:00:10]} Bg7 {[%emt 0:00:04]} 8. Nbd2 {[%emt 0:00:06] C77: Ruy Lopez: 3...a6 4 Ba4 Nf6, unusual lines.} b5 {[%emt 0:00:43]} 9. Bc2 {[%emt 0:00:15]} O-O {[%emt 0:00:23]} 10. Re1 {[%emt 0:01:17] The position is equal.} Nb8 {[%emt 0:08:32]} 11. a4 {[%emt 0:03:02]} Bb7 {[%emt 0:00:36]} 12. b4 {[%emt 0:00:41]} Nbd7 {[%emt 0:00:10]} 13. Nb3 {[%emt 0:01:39]} c5 {[%emt 0:04:11]} 14. Na5 {[%emt 0:03:49]} Qc7 {[%emt 0:00:02] [#]} 15. Bd2 $146 {[%emt 0:04:47]} ({Predecessor:} 15. Nxb7 Qxb7 16. Rb1 Qc6 17. d4 c4 18. Ra1 Qb7 19. h3 Rfe8 20. d5 Rf8 21. Bg5 {1-0 (52) Fedorchuk,S (2577)-Grabarczyk,M (2487) Warsaw 2005}) 15... Rac8 {[%emt 0:00:27]} 16. Nxb7 {[%emt 0:01:22]} Qxb7 {[%emt 0:00:02]} 17. axb5 {[%emt 0:00:20]} axb5 {[%emt 0:00:05]} 18. Bb3 {[%emt 0:02:17]} d5 {[%emt 0:06:50]} 19. exd5 {[%emt 0:07:36]} cxb4 {[%emt 0:04:39]} 20. cxb4 {[%emt 0:01:18]} ({Much weaker is} 20. c4 e4 21. Bxb4 Rfe8 $11) 20... Nxd5 {[%emt 0:00:23]} 21. Ng5 {[%emt 0:00:37][%cal Bf3g5,Bg5f7,Bf7d6][%mdl 32]} Nc3 {[%emt 0:11:20]} 22. Qg4 {[%emt 0:05:34] Qh3 is the strong threat.} Nf6 {[%emt 0:00:32] [#]} 23. Qh3 {[%emt 0:04:01]} Na4 {[%emt 0:01:04] This move loses the game for Black.} (23... Ncd5 $16 {might work better.}) 24. Rxe5 $18 {[%emt 0:12:14]} ({Not} 24. Nxf7 Rxf7 25. Bxf7+ (25. Rxe5 Ng4 $11) 25... Kxf7 $16) 24... Nh5 $2 {[%emt 0:00:23]} (24... Qd7 25. Nxf7 Qxh3 26. gxh3 (26. Nh6+ Kh8 $11) 26... Rxf7) 25. Nxf7 {[%emt 0:01:20] White is clearly winning.} Bxe5 {[%emt 0:00:09]} 26. Nd6+ {[%emt 0:04:31]} Kh8 {[%emt 0:00:05]} 27. Nxb7 {[%emt 0:00:06]} Bxa1 {[%emt 0:00:02]} 28. Nd6 {[%emt 0:00:22][%csl LRb5,LRc8]} Bd4 {[%emt 0:01:40]} 29. Nf7+ {[%emt 0:00:53] Weighted Error Value: White=0.04 (flawless) /Black=0.40} 1-0

[Event "13th KIIT Festival-A 2022"]
[Site "Bhubaneswar"]
[Date "2022.05.29"]
[Round "10.8"]
[White "Nitin, S.."]
[Black "Rohith Krishna S"]
[Result "1/2-1/2"]
[ECO "C49"]
[WhiteElo "2399"]
[BlackElo "2337"]
[Annotator "TA"]
[PlyCount "36"]
[EventDate "2022.05.15"]
[EventType "swiss"]
[EventCountry "IND"]
[SourceTitle "playchess.com"]
[Source "ChessBase"]
[SourceQuality "1"]
[TimeControl "5400+30"]

{[%evp 17,36,8,26,12,14,14,14,13,19,0,0,-23,4,0,0,-10,10,0,0,-11,13]} 1. e4 {[%emt 0:00:33]} e5 {[%emt 0:00:28]} 2. Nf3 {[%emt 0:00:14]} Nc6 {[%emt 0:00:05]} 3. Nc3 {[%emt 0:00:08]} Nf6 {[%emt 0:00:11]} 4. Bb5 {[%emt 0:00:08]} Bb4 {[%emt 0:00:21]} 5. O-O {[%emt 0:00:12]} O-O {[%emt 0:06:18]} 6. d3 {[%emt 0:00:30]} Bxc3 {[%emt 0:04:02]} 7. bxc3 {[%emt 0:00:16]} d6 {[%emt 0:00:15]} 8. Bg5 {[%emt 0:03:01]} h6 {[%emt 0:00:23]} 9. Bh4 {[%emt 0:01:38]} Qe7 {[%emt 0:01:08]} 10. Nd2 {[%emt 0:00:22] C49: Four Knights: 4 Bb5 Bb4.} a6 {[%emt 0:01:59]} 11. Bxc6 {[%emt 0:00:09]} bxc6 {[%emt 0:00:04]} 12. Re1 {[%emt 0:00:30]} Qe6 {[%emt 0:00:46] [#]} 13. Bxf6 $146 {[%emt 0:05:00]} ({Predecessor:} 13. d4 Nd7 14. Nf1 Nb6 15. Bg3 Re8 16. h3 a5 17. Qf3 Nc4 18. Nh2 f6 19. Ng4 {½-½ (61) Grischuk,A (2795)-Leko,P (2731) Sochi 2014}) 13... Qxf6 {[%emt 0:00:08]} 14. Qf3 {[%emt 0:01:55]} Qg6 {[%emt 0:00:08]} 15. Qg3 {[%emt 0:00:09] The position is equal.} Qf6 {[%emt 0:00:03]} 16. Qf3 {[%emt 0:00:05]} Qg6 {[%emt 0:00:03]} 17. Qg3 {[%emt 0:00:30]} Qf6 18. Qf3 {[%emt 0:00:00]} Qg6 {[%emt 0:01:00] An uneventful encounter.  Weighted Error Value: White=0.07 (flawless) /Black=0.09 (flawless)} 1/2-1/2

[Event "13th KIIT Festival-A 2022"]
[Site "Bhubaneswar"]
[Date "2022.05.29"]
[Round "10.9"]
[White "Rahman, Ziaur"]
[Black "Kiran, Manisha Mohanty"]
[Result "1-0"]
[ECO "D00"]
[WhiteElo "2431"]
[BlackElo "2098"]
[Annotator "TA"]
[PlyCount "64"]
[EventDate "2022.05.15"]
[EventType "swiss"]
[EventCountry "IND"]
[SourceTitle "playchess.com"]
[Source "ChessBase"]
[SourceQuality "1"]
[TimeControl "5400+30"]

{[%evp 16,64,7,6,38,35,30,36,63,50,114,106,116,94,123,114,159,157,179,163,164,152,159,172,229,209,218,211,214,201,204,195,193,194,233,227,287,268,305,245,263,245,344,319,396,381,434,424,644,636,789]} 1. d4 {[%emt 0:00:13]} Nf6 {[%emt 0:01:14]} 2. Bf4 {[%emt 0:00:22]} g6 {[%emt 0:01:54]} 3. Nc3 {[%emt 0:00:19]} d5 {[%emt 0:00:07]} 4. e3 {[%emt 0:00:06]} Bg7 {[%emt 0:00:30]} 5. Nb5 {[%emt 0:00:20]} Na6 {[%emt 0:00:15]} 6. h3 {[%emt 0:00:16]} c6 {[%emt 0:01:46]} 7. Nc3 {[%emt 0:00:11]} Nb8 {[%emt 0:00:17]} 8. Nf3 {[%emt 0:06:12]} O-O {[%emt 0:02:08]} 9. Be2 {[%emt 0:05:20]} h6 {[%emt 0:07:01] D00: 1 d4 d5: Unusual lines.} 10. O-O {[%emt 0:01:09]} Nbd7 {[%emt 0:02:45]} 11. a4 {[%emt 0:01:26][%cal Ba2a4,Ba4a5][%mdl 32] [#]} Ne4 $146 {[%emt 0:07:53] White is slightly better.} ({Predecessor:} 11... a5 12. Bd3 Re8 13. Bh2 Nh5 14. e4 e5 15. dxe5 dxe4 16. Bxe4 Nxe5 17. Qxd8 Nxf3+ 18. Bxf3 Rxd8 19. Rad1 Rxd1 20. Rxd1 {½-½ (40) Novikov,K (1696)-Hammerschmidt,V (1907) LSS email 2013}) 12. a5 {[%emt 0:05:44]} a6 {[%emt 0:03:25]} (12... f5 $14) 13. Nxe4 $16 {[%emt 0:01:10]} dxe4 {[%emt 0:00:14]} 14. Nd2 {[%emt 0:00:06] White is more active.} f5 {[%emt 0:00:32] [#]} 15. Nc4 $1 {[%emt 0:03:15] Inhibits e5.} ({Resist} 15. Bc4+ Kh7 $14) 15... e6 {[%emt 0:09:11]} 16. c3 {[%emt 0:02:02]} Kh8 {[%emt 0:02:44]} 17. Bd6 {[%emt 0:05:13]} Rg8 {[%emt 0:07:08]} 18. f3 {[%emt 0:02:02]} exf3 {[%emt 0:00:36]} 19. Bxf3 {[%emt 0:00:21]} Qg5 {[%emt 0:50:20]} (19... b5 $142) 20. Qe1 {[%emt 0:09:18]} Bf8 {[%emt 0:07:34]} 21. e4 {[%emt 0:03:47]} Bxd6 {[%emt 0:02:03]} 22. Nxd6 {[%emt 0:00:05] [#] And now Nf7+ would win.} Qe7 {[%emt 0:00:07] Prevents Nf7+.} 23. e5 {[%emt 0:00:28]} Nf8 {[%emt 0:00:08]} 24. c4 {[%emt 0:02:31][%cal Bc3c4,Bc4d5][%mdl 32]} Rb8 {[%emt 0:01:22]} 25. Ra3 {[%emt 0:01:01][%cal Ba1a3,Ba3b3,Bb3b6][%mdl 32]} Bd7 {[%emt 0:01:01]} 26. Rb3 {[%emt 0:01:19]} Be8 {[%emt 0:00:07]} 27. Qe3 {[%emt 0:49:44]} g5 {[%emt 0:01:01]} 28. d5 {[%emt 0:02:13]} cxd5 {[%emt 0:12:33]} (28... Nd7 {was called for.} 29. Re1 (29. dxc6 bxc6 30. Rxb8 Nxb8 $18) (29. Nxb7 exd5 30. cxd5 Nxe5 $18) 29... Bg6 30. Rxb7 (30. dxc6 bxc6 31. Rxb8 Nxb8 $16) 30... Rxb7) 29. cxd5 $18 {[%emt 0:00:20]} Bd7 {[%emt 0:00:23]} 30. Rb6 {[%emt 0:03:19]} Ng6 {[%emt 0:01:05]} 31. Rc1 {[%emt 0:04:59]} Rgf8 {[%emt 0:06:03]} (31... Rg7 $142 32. dxe6 Bxe6 33. Nxb7 Rc8) 32. Rc7 {[%emt 0:02:02]} exd5 {[%emt 0:02:10] Black got outplayed after the opening.  Weighted Error Value: White=0.06 (flawless) /Black=0.39} 1-0

[Event "13th KIIT Festival-A 2022"]
[Site "Bhubaneswar"]
[Date "2022.05.29"]
[Round "10.9"]
[White "Karthikeyan, P.."]
[Black "Shiva Pavan Teja Sharma U"]
[Result "1-0"]
[ECO "D27"]
[WhiteElo "2361"]
[BlackElo "2064"]
[Annotator "TA"]
[PlyCount "87"]
[EventDate "2022.05.15"]
[EventType "swiss"]
[EventCountry "IND"]
[SourceTitle "playchess.com"]
[Source "ChessBase"]
[SourceQuality "1"]
[TimeControl "5400+30"]

{[%evp 19,87,46,63,56,59,51,49,46,268,279,260,257,367,361,351,372,370,368,371,366,336,343,430,426,425,375,487,425,435,358,510,458,464,457,503,443,492,489,510,507,522,532,510,529,527,514,516,515,488,401,379,377,664,283,944,935,6058,5260,6091,6091,6091,6091,5569,5485,2639,4149,5181,3305,2570,1479]} 1. d4 {[%emt 0:00:06]} Nf6 {[%emt 0:00:21]} 2. c4 {[%emt 0:00:03]} e6 {[%emt 0:00:10]} 3. Nf3 {[%emt 0:00:02]} d5 {[%emt 0:00:20]} 4. Nc3 {[%emt 0:00:04]} c5 {[%emt 0:00:46]} 5. e3 {[%emt 0:00:13]} dxc4 {[%emt 0:04:30]} 6. Bxc4 {[%emt 0:00:32]} a6 {[%emt 0:00:56]} 7. a4 {[%emt 0:00:40]} b6 {[%emt 0:01:44]} 8. O-O {[%emt 0:01:11]} Bb7 {[%emt 0:01:50]} 9. Qe2 {[%emt 0:00:18]} Nc6 {[%emt 0:08:41]} 10. Rd1 {[%emt 0:01:19]} Qc7 {[%emt 0:02:00]} 11. d5 {[%emt 0:03:22] D27: Queen's Gambit Accepted: Classical main line: 7 e4!? and 7 a4.} exd5 {[%emt 0:00:26]} 12. Bxd5 {[%emt 0:00:12]} Be7 {[%emt 0:06:32]} 13. e4 {[%emt 0:06:25][%cal Be3e4,Be4e5][%mdl 32] [#] Black must now prevent e5. White is slightly better.} Nd8 $146 {[%emt 0:19:27]} (13... Rd8 $14) ({Predecessor:} 13... O-O 14. e5 Nd4 15. Rxd4 cxd4 16. exf6 Bxf6 17. Bxb7 Qxb7 18. Ne4 Qc6 19. Nxf6+ Qxf6 {1-0 (39) Atalik,S (2570)-Krush,I (2465) Kansas 2003}) 14. Bxb7 $18 {[%emt 0:05:47]} Qxb7 {[%emt 0:01:18] [#]} 15. e5 $1 {[%emt 0:00:11]} Nd7 {[%emt 0:01:42]} (15... Ng8 {might work better.} 16. Ng5 Kf8) 16. Bg5 {[%emt 0:03:04]} Nf8 {[%emt 0:02:19]} 17. Bxe7 {[%emt 0:05:36]} Qxe7 {[%emt 0:00:14]} 18. Rd6 {[%emt 0:00:18]} Nfe6 {[%emt 0:03:53]} 19. Nd5 {[%emt 0:01:17][%cal Bc3d5,Bd5b6,Bb6d7][%mdl 32]} Qb7 {[%emt 0:02:05]} 20. Nxb6 {[%emt 0:00:43]} Rb8 {[%emt 0:00:11]} 21. a5 {[%emt 0:02:52]} O-O {[%emt 0:00:20]} 22. Nd7 {[%emt 0:01:15]} Nf4 {[%emt 0:04:33]} 23. Qd2 {[%emt 0:00:22]} Nde6 {[%emt 0:00:41]} 24. Nxb8 {[%emt 0:00:58]} Qxb8 {[%emt 0:02:27]} (24... Rxb8 {keeps fighting.} 25. Rb6 Qa8) 25. Ra4 {[%emt 0:10:37]} Ng6 {[%emt 0:02:12]} 26. Rb6 {[%emt 0:03:01] Prevents Qb3.} Qa8 {[%emt 0:01:01]} 27. Rc4 {[%emt 0:06:06]} Rd8 {[%emt 0:01:08]} 28. Rd6 {[%emt 0:00:10]} Rb8 {[%emt 0:01:13]} 29. b4 {[%emt 0:02:22]} cxb4 {[%emt 0:02:07]} 30. Rxb4 {[%emt 0:00:13]} Rc8 {[%emt 0:00:34]} 31. h4 {[%emt 0:02:35][%cal Bh2h4,Bh4h5][%mdl 32]} h6 {[%emt 0:01:59]} 32. h5 {[%emt 0:03:18]} Ne7 {[%emt 0:00:20]} 33. Rd7 {[%emt 0:00:34]} Nc6 {[%emt 0:03:01]} 34. Rc4 {[%emt 0:06:44]} Nxa5 {[%emt 0:05:49]} 35. Rg4 {[%emt 0:07:08]} Rc4 $2 {[%emt 0:02:29]} (35... Qc6 36. Rd6 Qc1+ 37. Kh2 Qxd2 38. Nxd2 Rc5) 36. Rg3 {[%emt 0:04:34]} (36. Qxa5 Rxg4 37. Qc3 a5 $15) (36. Rxc4 $142 Nxc4 37. Qb4) 36... Nb3 {[%emt 0:02:00]} (36... Qe8 37. Rd6 Nb7) 37. Qxh6 {[%emt 0:00:49][%cal Og3g7] White is clearly winning.} Nbc5 {[%emt 0:00:25] [#]} 38. Rxf7 $3 {[%emt 0:03:30][%mdl 512]} Kxf7 {[%emt 0:01:10] [#]} 39. Rxg7+ $3 {[%emt 0:00:05][%mdl 576] Deflection} Nxg7 {[%emt 0:02:16]} 40. Ng5+ {[%emt 0:00:05]} Ke8 {[%emt 0:02:52]} 41. Qh8+ {[%emt 0:00:19][%mdl 64] Skewer} Kd7 {[%emt 0:00:38]} 42. Qxa8 {[%emt 0:00:27] Intending Qd5+ and mate.} Rc1+ {[%emt 0:00:38]} 43. Kh2 {[%emt 0:00:01]} Nxh5 {[%emt 0:00:18]} 44. Qd5+ {[%emt 0:00:35] Black got outplayed after the opening.  Weighted Error Value: White=0.10 (very precise) /Black=0.48} 1-0